Cogmind - Beta 16 @@@ ROGUE MODE // 2025.11.11 @ 19:50:54 Player: Reflectatory Result: Destroyed by G-67 Veteran with Plasma Rifle Performance ------------- Evolutions (7) 3500 Regions Visited (12) 2400 Robots Destroyed (31) 155 Value Destroyed (1039) 1039 Prototype IDs (20) 400 Alien Tech Used (7) 1400 Bonus (6374) 6374 TOTAL SCORE: 15268 Bonus ------- Follower Combat Kills 74 Registered with UFD 300 Met Optimus in HQ 500 Used Core Reset Matrix 3000 Scanned by Researcher 500 Met Sigix 2000 Cogmind --------- Core Integrity 0/1300 Matter 41/300 Energy 99/100 System Corruption 3% Temperature Cool (12) Movement Core (50) Location -3/Quarantine Parts ------- > --- POWER (2) -------- (None) > --- PROPULSION (5) --- (None) > --- UTILITY (12) ----- Enhanced Optical Array Advanced Signal Interpreter IFF Parser Advanced Melee Analysis Suite System Shield > --- WEAPON (2) ------- (None) > --- INVENTORY (5) ---- Sigix Containment Pod Sigix Containment Pod Peak State ------------ > --- POWER ------------ Particle Reactor > --- PROPULSION ------- Improved Linear Gravjet Antigrav Array Antigrav Array > --- UTILITY ---------- Advanced Cryofiber Web Gravity Neutralizer Enhanced Optical Array Experimental Optical Array Advanced Signal Interpreter IFF Parser Improved Melee Analysis Suite Advanced Melee Analysis Suite Phase Armor System Shield > --- WEAPON ----------- Scythe Scythe > --- INVENTORY -------- Transdimensional Reconstructor Sigix Containment Pod Sigix Containment Pod [Rating: 135] Favorites ----------- Power Light Nuclear Core Engine Light Deuterium Engine Power Core Light Nuclear Core Reactor Particle Reactor Propulsion VTOL Module Leg Carbon-fiber Leg Wheel Wheel Hover Unit Antigrav Array Flight Unit VTOL Module Utility Enhanced Optical Array Device Advanced Cryofiber Web Processor Enhanced Optical Array Hackware System Shield Protection Core Shielding Artifact Phase Armor Weapon Scythe Energy Gun Medium Laser Ballistic Gun Light Assault Rifle Special Weapon Remote Datajack Slashing Weapon Scythe Piercing Weapon Heavy Pick Special Melee Weapon Datajack Build | -11 -10 -10 -10 -8 -8 -6 -6 -6 -5 -4 -3 -3 ------- Run | Yrd Mat Min Sub Rec Scr Fac Low Low Fac Fac Res Qua Slots Evolved 14 | . . . . . . 8 . . 2 2 2 . Power 1 | . . . . . . 1 . . . . . . Propulsion 3 | . . . . . . 3 . . . . . . Utility 10 | . . . . . . 4 . . 2 2 2 . Weapon . | . . . . . . . . . . . . . Parts Attached 82 | 5 2 4 4 . 4 23 1 . 13 11 8 7 Power 10 | 1 . 1 . . 1 3 . . 2 . 1 1 Engine 4 | 1 . 1 . . 1 . . . 1 . . . Core 4 | . . . . . . 3 . . 1 . . . Reactor 2 | . . . . . . . . . . . 1 1 Propulsion 33 | 2 . 3 3 . . 6 . . 7 4 3 5 Treads . | . . . . . . . . . . . . . Leg 5 | . . . . . . . . . 4 . . 1 Wheel 2 | 2 . . . . . . . . . . . . Hover 7 | . . . . . . . . . 3 . 3 1 Flight 19 | . . 3 3 . . 6 . . . 4 . 3 Utility 24 | . 2 . . . 1 8 1 . 2 5 4 1 Device 10 | . 1 . . . . 2 1 . 1 3 2 . Storage . | . . . . . . . . . . . . . Processor 6 | . . . . . . 3 . . . 1 2 . Hackware 4 | . . . . . . 2 . . 1 1 . . Protection 3 | . 1 . . . 1 1 . . . . . . Artifact 1 | . . . . . . . . . . . . 1 Weapon 15 | 2 . . 1 . 2 6 . . 2 2 . . Energy Gun 2 | 1 . . . . . . . . 1 . . . Energy Cannon . | . . . . . . . . . . . . . Ballistic Gun 5 | 1 . . 1 . 2 1 . . . . . . Ballistic Cannon . | . . . . . . . . . . . . . Launcher . | . . . . . . . . . . . . . Special Weapon 2 | . . . . . . 2 . . . . . . Impact Weapon . | . . . . . . . . . . . . . Slashing Weapon 3 | . . . . . . 1 . . . 2 . . Piercing Weapon 2 | . . . . . . 1 . . 1 . . . Special Melee Weapon 1 | . . . . . . 1 . . . . . . Unidentified Prototypes 9 | . . . . . . . . . . . 2 7 Parts Lost 51 | . . 1 5 . . 9 4 2 10 3 3 14 Power 8 | . . 1 1 . . 3 1 . 1 . . 1 Propulsion 25 | . . . 3 . . 5 2 1 4 2 1 7 Utility 12 | . . . . . . 1 . 1 3 1 2 4 Weapon 6 | . . . 1 . . . 1 . 2 . . 2 Highest Loss Streak 7 | . . 1 3 . . 3 4 2 7 1 1 6 To Critical Strikes . | . . . . . . . . . . . . . Average Backups 3 | 1 4 4 4 4 5 4 4 5 3 4 4 1 Power . | . 1 . . . . . . 1 1 . . . Propulsion . | . 1 1 1 1 1 . . . . 1 3 . Utility 1 | . . 1 1 1 2 2 3 3 2 1 . . Weapon . | . 1 1 . 1 . . 1 1 . 1 1 . Tool/Special . | . . . . . . . . . . . . . Unused Backups 9 | . 2 . . . 1 1 . . . 2 . 3 Power . | . . . . . . . . . . . . . Propulsion 4 | . 2 . . . . . . . . . . 2 Utility 1 | . . . . . . . . . . 1 . . Weapon 4 | . . . . . 1 1 . . . 1 . 1 Tool/Special . | . . . . . . . . . . . . . Average Slot Usage (%) 72 | . 83 97 96 85 72 85 66 52 57 57 71 60 Engine 3 | . 14 11 14 . 8 2 . . 2 . . . Core 1 | . . . . . . 4 2 . . 5 . . Leg 1 | . . . . . . . . . 8 . . 1 Wheel 1 | . 28 6 . . . . . . . . . . Hover 2 | . . . . . . . . . 4 5 4 7 Flight 12 | . . 21 25 28 28 25 13 5 . 9 8 2 Device 7 | . 2 14 14 14 14 1 2 6 3 3 16 13 Processor 14 | . . . . . . 18 20 20 16 10 21 21 Hackware 7 | . . . . . . 12 13 13 11 11 5 4 Protection 4 | . 9 14 14 14 14 5 3 . . . . . Energy Gun 1 | . 14 14 2 . . . . . 1 . . . Ballistic Gun 3 | . 14 14 24 28 7 . . . . . . . Special Weapon 1 | . . . . . . 5 3 . . . . . Slashing Weapon 2 | . . . . . . . . . . 5 9 5 Piercing Weapon 2 | . . . . . . 3 6 6 4 3 . . Peak Build Rating 135 | 5 7 7 7 6 12 55 45 33 69 71 109 135 Average Rating 50 | 4 5 6 6 6 8 43 38 32 45 54 90 97 On Entrance 27 | . 5 7 7 6 6 8 45 33 28 40 71 104 Avg Prop Armor Cover (%) 9 | . . . . . . . . . 19 5 7 8 Naked Turns . | . . . . . . . . . . . . . Heaviest Build 64 | 6 8 8 8 4 7 17 12 4 18 14 25 64 Greatest Support 76 | 20 20 20 8 8 8 26 15 4 45 30 76 74 Greatest Overweight (x) 2 | . . 1 2 . . . . 1 1 . . 1 Average Overweight (x) . | . . . . . . . . . . . . . Largest Inventory Capacity 5 | 5 5 5 5 5 5 5 5 5 5 5 5 5 Average Capacity 5 | 5 5 5 5 5 5 5 5 5 5 5 5 5 Most Carried 5 | 4 5 5 5 5 5 5 5 5 5 5 5 5 Average Carried 4 | 1 4 4 4 4 4 4 4 5 3 4 4 4 Final Capacity 5 | 5 5 5 5 5 5 5 5 5 5 5 5 5 Final Carried 5 | 4 4 5 4 5 5 4 5 5 4 5 5 4 Class Distribution -------------------- 33% | Mutant 15% | Gladiator 13% | Hacker-Sprinter 9% | Scavenger-Sprinter 9% | Scavenger-Mutant 8% | Hacker-Mutant 4% | Hacker-Assassin 3% | Hacker-Scout Dominant Class ---------------- Mutant | -10/Materials Mutant | -10/Mines Mutant | -10/Subcaves Mutant | -8/Recycling Mutant | -8/Scraptown Scavenger-Sprinter | -6/Factory Hacker-Scout | -6/Lower Caves Hacker-Scout | -6/Lower Caves Scavenger-Mutant | -5/Factory Hacker-Sprinter | -4/Factory Gladiator | -3/Research Gladiator | -3/Quarantine Resources | -11 -10 -10 -10 -8 -8 -6 -6 -6 -5 -4 -3 -3 ----------- Run | Yrd Mat Min Sub Rec Scr Fac Low Low Fac Fac Res Qua Matter Collected 829 | 216 74 42 61 . . 269 62 . 80 25 . . Remotely . | . . . . . . . . . . . . . Salvage Created 1079 | . 132 44 78 . . 220 49 . 413 75 . 68 Parts 75 | . 16 4 9 . . 18 3 . 16 5 . 4 Haulers Intercepted . | . . . . . . . . . . . . . Recyclers Shooed . | . . . . . . . . . . . . . Parts Field Recycled . | . . . . . . . . . . . . . Retrieved Matter . | . . . . . . . . . . . . . Parts Self-Destructed 17 | . . . 11 . . . 6 . . . . . Prevented . | . . . . . . . . . . . . . Parts Restored . | . . . . . . . . . . . . . Kills | -11 -10 -10 -10 -8 -8 -6 -6 -6 -5 -4 -3 -3 ------- Run | Yrd Mat Min Sub Rec Scr Fac Low Low Fac Fac Res Qua Combat Hostiles Destroyed 29 | . 5 3 4 . . 7 1 . 5 3 . 1 Melee 16 | . . . . . . 6 1 . 5 3 . 1 Guns 13 | . 5 3 4 . . 1 . . . . . . Classes Destroyed 6 | . 3 . 1 . . 1 . . 1 . . . Recycler 1 | . . . . . . . . . 1 . . . Operator 1 | . 1 . . . . . . . . . . . Swarmer 17 | . 3 3 3 . . 5 . . . 3 . . Grunt 5 | . 2 . . . . . . . 3 . . . Sentry 2 | . . . 1 . . . . . 1 . . . Programmer 5 | . . . . . . 2 1 . 1 . . 1 Best Kill Streak 5 | . 2 3 2 . . 3 1 . 5 3 . 1 Combat Bots Only 4 | . 2 3 2 . . 3 1 . 4 3 . 1 Max Kills in Single Turn 2 | . 1 1 2 . . 1 1 . 1 1 . 1 Gunslinging 1 | . . . 1 . . . . . . . . . Exploded . | . . . . . . . . . . . . . Melee 1 | . . . . . . 1 1 . 1 1 . 1 Uniques/NPCs Destroyed . | . . . . . . . . . . . . . Combat | -11 -10 -10 -10 -8 -8 -6 -6 -6 -5 -4 -3 -3 -------- Run | Yrd Mat Min Sub Rec Scr Fac Low Low Fac Fac Res Qua Hostile Shots Fired 649 | . 23 10 74 . . 119 16 3 107 26 62 209 Missed 270 | . 7 1 29 . . 60 5 . 40 13 37 78 Hits 379 | . 16 9 45 . . 59 11 3 67 13 25 131 Projectile 379 | . 16 9 45 . . 59 11 3 67 13 25 131 AOE 1 | . . . . . . . . . . . . 1 Critical Strikes 9 | . . . . . . 1 1 . . 1 1 5 Actively Blocked 1 | . . . . . . . 1 . . . . . Part Disruptions 2 | . . . . . . 1 . . . . . 1 Damage Taken 6837 | . 145 72 369 . . 920 166 57 1433 252 406 3017 Core 2675 | . 23 14 165 . . 303 75 17 881 105 162 930 Absorbed by Shields 40 | . . . . . . . . . . . . 40 Redirected to Shielding 118 | . 3 2 33 . . 63 17 . . . . . Core Remaining (%) 54 | 100 . . . . 19 . . 53 11 90 . . Volleys Fired 58 | . 20 6 17 . . 14 . . 1 . . . Largest 2 | . 2 2 2 . . 1 . . 1 . . . Hottest 70 | . 70 70 70 . . 33 . . 60 . . . Shots Fired 101 | . 40 12 34 . . 14 . . 1 . . . Gun 100 | . 40 12 34 . . 13 . . 1 . . . Cannon . | . . . . . . . . . . . . . Launcher . | . . . . . . . . . . . . . Special 1 | . . . . . . 1 . . . . . . Kinetic 70 | . 20 6 31 . . 13 . . . . . . Thermal 29 | . 20 6 3 . . . . . . . . . Explosive . | . . . . . . . . . . . . . Electromagnetic 1 | . . . . . . . . . 1 . . . Robot Hit Streak 7 | . 7 5 4 . . 3 . . . . . . Robot Miss Streak 4 | . 4 3 4 . . 3 . . . . . . Penetration Max . | . . . . . . . . . . . . . Secondary Targets 2 | . . . 2 . . . . . . . . . Max Gunslinging Chain 1 | . . . 1 . . . . . . . . . Shots Hit Robots 111 | . 22 6 17 . . 22 7 . 19 7 1 10 Core Hits 45 | . 10 3 7 . . 8 1 . 11 3 . 2 Critical Kills 1 | . . . . . . 1 . . . . . . Critical Parts Destroyed 3 | . . . . . . 3 . . . . . . Critical Strikes 7 | . . 2 . . . 5 . . . . . . Burn 2 | . . 2 . . . . . . . . . . Destroy 4 | . . . . . . 4 . . . . . . Impale 1 | . . . . . . 1 . . . . . . Melee Attacks 119 | . . . . . . 27 8 . 26 16 24 18 Impact . | . . . . . . . . . . . . . Slashing 58 | . . . . . . 3 . . . 13 24 18 Piercing 60 | . . . . . . 23 8 . 26 3 . . Sneak Attacks 4 | . . . . . . 1 . . 2 . . 1 Combat Hostiles 1 | . . . . . . . . . . . . 1 Follow-up Attacks 1 | . . . . . . . . . . 1 . . Damage Inflicted 2638 | . 217 80 188 . . 535 259 . 722 219 40 378 Guns 552 | . 217 80 188 . . 67 . . . . . . Cannons . | . . . . . . . . . . . . . Explosions . | . . . . . . . . . . . . . Melee 2061 | . . . . . . 468 259 . 722 219 40 353 Ramming 25 | . . . . . . . . . . . . 25 Kinetic 328 | . 92 17 152 . . 67 . . . . . . Thermal 224 | . 125 63 36 . . . . . . . . . Explosive . | . . . . . . . . . . . . . Electromagnetic . | . . . . . . . . . . . . . Impact . | . . . . . . . . . . . . . Slashing 674 | . . . . . . 94 . . . 187 40 353 Piercing 1387 | . . . . . . 374 259 . 722 32 . . Highest Corruption 10 | . . . . . . 1 3 3 6 . . 10 Average Corruption 2 | . . . . . . 1 2 3 3 . . 4 Corruption Purged . | . . . . . . . . . . . . . Corruption Blocked . | . . . . . . . . . . . . . Effects 16 | . . . . . . 2 2 2 1 . . 9 Message Errors 1 | . . . . . . . . . . . . 1 Matter Fused 6 | . . . . . . 1 . 1 1 . . 3 Heat Flow Errors 1 | . . . . . . . 1 . . . . . Energy Discharges 4 | . . . . . . . 1 . . . . 3 Parts Rejected 1 | . . . . . . 1 . . . . . . Data Loss (minor) 2 | . . . . . . . . 1 . . . 1 Misdirections 1 | . . . . . . . . . . . . 1 Overload Shots . | . . . . . . . . . . . . . Overflow Damage 147 | . . . . . . 60 52 . . 9 10 16 Projectiles . | . . . . . . . . . . . . . Explosions . | . . . . . . . . . . . . . Melee 147 | . . . . . . 60 52 . . 9 10 16 Knockbacks . | . . . . . . . . . . . . . Impact . | . . . . . . . . . . . . . Kinetic . | . . . . . . . . . . . . . Secondary . | . . . . . . . . . . . . . Self-Inflicted Damage 10 | . . . . . . . . . . . . 10 Shots . | . . . . . . . . . . . . . Rammed 5 | . . . . . . . . . . . . 5 Targets Rammed 5 | . . . . . . . . . . . . 5 Kicked . | . . . . . . . . . . . . . Crushed . | . . . . . . . . . . . . . Highest Temperature 176 | . 110 10 . . . 132 176 . . . . . Average Temperature 45 | . 48 7 . . . 44 93 . . . . . Received Heat Transfer 519 | . 24 . 36 . . 114 . 21 162 54 30 78 Siege Activations . | . . . . . . . . . . . . . Martial Activations . | . . . . . . . . . . . . . Shielding Activations . | . . . . . . . . . . . . . Robots Disrupted . | . . . . . . . . . . . . . Combat Hostiles . | . . . . . . . . . . . . . Robots Corrupted . | . . . . . . . . . . . . . Combat Hostiles . | . . . . . . . . . . . . . Parts Fried . | . . . . . . . . . . . . . Impact Corruptions . | . . . . . . . . . . . . . Robots Melted . | . . . . . . . . . . . . . Combat Hostiles . | . . . . . . . . . . . . . Parts Melted 2 | . . 1 . . . . 1 . . . . . Heat Transferred 814 | . 370 333 111 . . . . . . . . . Parts Sabotaged . | . . . . . . . . . . . . . Parts Stolen . | . . . . . . . . . . . . . Parts Stripped . | . . . . . . . . . . . . . Power Chain Reactions . | . . . . . . . . . . . . . Alert | -11 -10 -10 -10 -8 -8 -6 -6 -6 -5 -4 -3 -3 ------- Run | Yrd Mat Min Sub Rec Scr Fac Low Low Fac Fac Res Qua Maximum Alert Level . | . . . . . . . . . . . . . Low Security (%) 100 | 100 100 100 . 100 . 100 . . 100 100 100 100 Level 1 . | . . . . . . . . . . . . . Level 2 . | . . . . . . . . . . . . . Level 3 . | . . . . . . . . . . . . . Level 4 . | . . . . . . . . . . . . . Level 5 . | . . . . . . . . . . . . . High Security . | . . . . . . . . . . . . . Max Security . | . . . . . . . . . . . . . Peak Influence 191 | . 80 78 . 33 . 189 . . 65 110 191 113 Initial 80 | . . 18 . 33 . . . . . . 36 80 Average 50 | . 52 48 . 10 . 79 . . 12 43 93 32 Influence Increases 2093 | . 155 70 150 14 . 782 30 . 167 172 297 256 Destroy 0b10 Robot/C 620 | . 100 60 80 . . 180 20 . 100 60 . 20 Destroy 0b10 Robot/NC 10 | . 5 . . . . . . . 5 . . . Destroy Leader 120 | . 10 10 10 . . 40 10 . 20 10 . 10 Allied During Kill 6 | . . . . . . 6 . . . . . . Successful Hack 166 | . 10 . . 14 . 84 . . 6 6 19 27 Disable Machine 75 | . . . . . . . . . . . . 75 Destroy Structure 61 | . . . . . . 7 . . 6 6 38 4 Partial Spotted 195 | . . . . . . 120 . . 15 . 15 45 Lose Combat Pursuer 840 | . 30 . 60 . . 345 . . 15 90 225 75 Influence Decreases 2079 | . 106 101 98 84 . 629 183 . 167 102 224 385 Entered New Map 232 | . . 31 10 37 . . 57 . . . 34 63 Time Decay 1257 | . 106 60 68 9 . 304 86 . 128 72 160 264 Lost Part 278 | . . 10 20 . . 90 40 . 39 20 30 29 Lost Ally 90 | . . . . . . 80 . . . 10 . . Purge Threat 222 | . . . . 38 . 155 . . . . . 29 Squads Dispatched 36 | . . . . . . 15 . . 5 2 8 6 Investigation 17 | . . . . . . 9 . . 4 . 4 . Extermination 9 | . . . . . . 3 . . 1 1 1 3 Reinforcement 10 | . . . . . . 3 . . . 1 3 3 Assault . | . . . . . . . . . . . . . Garrison . | . . . . . . . . . . . . . Intercept . | . . . . . . . . . . . . . Searches Triggered . | . . . . . . . . . . . . . Construction Impeded . | . . . . . . . . . . . . . Haulers Reinforced . | . . . . . . . . . . . . . Active Scanning Responses . | . . . . . . . . . . . . . Cargo Convoy Interrupts . | . . . . . . . . . . . . . Stealth | -11 -10 -10 -10 -8 -8 -6 -6 -6 -5 -4 -3 -3 --------- Run | Yrd Mat Min Sub Rec Scr Fac Low Low Fac Fac Res Qua Distress Signals 10 | . 1 . . . . 6 . . 2 . . 1 Communications Jammed . | . . . . . . . . . . . . . Distress Signals . | . . . . . . . . . . . . . Times Spotted 168 | . 8 2 12 1 . 51 2 3 11 10 23 45 Peak Tracking Total 15 | . 3 2 6 2 . 8 1 3 6 6 13 15 Tactical Retreats 27 | . 1 . 2 . . 13 . . 1 3 5 2 Traps | -11 -10 -10 -10 -8 -8 -6 -6 -6 -5 -4 -3 -3 ------- Run | Yrd Mat Min Sub Rec Scr Fac Low Low Fac Fac Res Qua Traps Triggered 2 | . . . . . . 1 . . . . . 1 Indirectly . | . . . . . . . . . . . . . Trap Hack Attempts . | . . . . . . . . . . . . . Triggered . | . . . . . . . . . . . . . Disarmed . | . . . . . . . . . . . . . Reprogrammed . | . . . . . . . . . . . . . Reused . | . . . . . . . . . . . . . Traps Extracted . | . . . . . . . . . . . . . Installed . | . . . . . . . . . . . . . Triggered . | . . . . . . . . . . . . . Machines | -11 -10 -10 -10 -8 -8 -6 -6 -6 -5 -4 -3 -3 ---------- Run | Yrd Mat Min Sub Rec Scr Fac Low Low Fac Fac Res Qua Machines Disabled 5 | . . . . . . . . . . . . 5 Max in Single Turn 1 | . . . . . . . . . . . . 1 Machines Repaired . | . . . . . . . . . . . . . Machines Dismantled . | . . . . . . . . . . . . . Machines Sabotaged . | . . . . . . . . . . . . . Overloaded Fab Kills . | . . . . . . . . . . . . . Hacking | -11 -10 -10 -10 -8 -8 -6 -6 -6 -5 -4 -3 -3 --------- Run | Yrd Mat Min Sub Rec Scr Fac Low Low Fac Fac Res Qua Machines Accessed 66 | . 4 . 1 4 6 22 . . 6 5 8 10 Terminals 34 | . 4 . . 2 . 12 . . 1 1 4 10 Fabricators 7 | . . . . . . 3 . . 1 2 1 . Repair Stations . | . . . . . . . . . . . . . Recycling Units 10 | . . . . . . 5 . . 2 . 3 . Scanalyzers 6 | . . . . . . 2 . . 2 2 . . Garrison Access . | . . . . . . . . . . . . . Total Hacks 213 | . 8 . 4 38 22 73 . . 18 11 23 16 Successful 142 | . 7 . 4 31 22 42 . . 11 7 9 9 Failed 69 | . 1 . . 7 . 31 . . 6 3 14 7 Catastrophic 18 | . . . . 3 . 8 . . . . 5 2 Database Lockouts 2 | . . . . . . . . . 1 1 . . Manual 102 | . 6 . . 10 1 54 . . 11 3 15 2 Terminals 119 | . 8 . . 13 . 56 . . 7 2 17 16 Fabricators 14 | . . . . . . 7 . . 2 3 2 . Repair Stations . | . . . . . . . . . . . . . Recycling Units 12 | . . . . . . 5 . . 3 . 4 . Scanalyzers 17 | . . . . . . 5 . . 6 6 . . Garrison Access . | . . . . . . . . . . . . . Terminal Hacks 82 | . 3 . 4 29 22 11 . . 1 . 3 9 Record 57 | . 2 . 4 24 21 . . . . . . 6 Prototype ID Bank 3 | . . . . 1 . 1 . . . . 1 . Open Door 1 | . . . . . . . . . . . . 1 Branch Access Points 1 | . . . . . . . . . . . 1 . Terminal Index 4 | . 1 . . 1 . 1 . . 1 . . . Unreport Threat 4 | . . . . 1 . 2 . . . . . 1 Locate Traps 1 | . . . . . . . . . . . . 1 Recall Investigation 5 | . . . . . . 4 . . . . 1 . Recall Reinforcements 3 | . . . . . . 3 . . . . . . Zone Layout 1 | . . . . 1 . . . . . . . . Proto ID Catalog 1 | . . . . . 1 . . . . . . . Release Object 1 | . . . . 1 . . . . . . . . Fabricator Hacks 7 | . . . . . . 4 . . 1 2 . . Network Status 5 | . . . . . . 3 . . 1 1 . . Build 2 | . . . . . . 1 . . . 1 . . Repair Station Hacks . | . . . . . . . . . . . . . Recycling Unit Hacks . | . . . . . . . . . . . . . Scanalyzer 10 | . . . . . . 4 . . 3 3 . . Insert Component 1 | . . . . . . . . . 1 . . . Retrieve Study 9 | . . . . . . 4 . . 2 3 . . Garrison Access Hacks . | . . . . . . . . . . . . . Unauthorized Hacks 43 | . 4 . . 2 . 23 . . 6 2 6 . Terminals 30 | . 4 . . 2 . 16 . . 3 1 4 . Track 3 | . . . . . . 1 . . 1 . 1 . Assimilate 4 | . . . . . . 4 . . . . . . Botnet 20 | . 4 . . 2 . 10 . . 1 1 2 . Operators 3 | . . . . . . 1 . . 1 . 1 . Fabricators 4 | . . . . . . 2 . . 1 1 . . Report 1 | . . . . . . 1 . . . . . . Liberate 2 | . . . . . . 1 . . . 1 . . Recompile 1 | . . . . . . . . . 1 . . . Repair Stations . | . . . . . . . . . . . . . Recycling Units 9 | . . . . . . 5 . . 2 . 2 . Fedlink 9 | . . . . . . 5 . . 2 . 2 . Scanalyzers . | . . . . . . . . . . . . . Garrison Access . | . . . . . . . . . . . . . Data Cores Recovered 1 | . 1 . . . . . . . . . . . Used 1 | . 1 . . . . . . . . . . . Hacking Detections 38 | . 4 . . 2 . 16 . . 2 4 6 4 Full Trace Events 6 | . . . . . . 3 . . 1 . 2 . Feedback Events 1 | . . . . . . . . . . . 1 . Hackware Fried 1 | . . . . . . . . . . . 1 . Feedback Blocked . | . . . . . . . . . . . . . Robot Schematics Acquired . | . . . . . . . . . . . . . Robots Built 2 | . . . . . . 2 . . . . . . Authchips . | . . . . . . . . . . . . . Time 76 | . . . . . . 76 . . . . . . Total Robot Build Rating 10 | . . . . . . 10 . . . . . . Part Schematics Acquired . | . . . . . . . . . . . . . Parts Built 2 | . . . . . . . . . . 2 . . Authchips . | . . . . . . . . . . . . . Time 139 | . . . . . . . . . . 139 . . Total Part Build Rating 18 | . . . . . . . . . . 18 . . Part Studies Acquired 9 | . . . . . . 4 . . 2 3 . . Parts Repaired . | . . . . . . . . . . . . . Time . | . . . . . . . . . . . . . Parts Recycled . | . . . . . . . . . . . . . Recycled Matter . | . . . . . . . . . . . . . Retrieved Matter . | . . . . . . . . . . . . . Retrieved Components . | . . . . . . . . . . . . . Parts Scanalyzed 1 | . . . . . . . . . 1 . . . Part Schematics Acquired . | . . . . . . . . . . . . . Parts Damaged . | . . . . . . . . . . . . . Bothacking | -11 -10 -10 -10 -8 -8 -6 -6 -6 -5 -4 -3 -3 ------------ Run | Yrd Mat Min Sub Rec Scr Fac Low Low Fac Fac Res Qua Used RIF Installer . | . . . . . . . . . . . . . Robots Hacked 1 | . . . . . . 1 . . . . . . Non-combat 1 | . . . . . . 1 . . . . . . Combat . | . . . . . . . . . . . . . Robot Hacks Applied 1 | . . . . . . 1 . . . . . . find_chute 1 | . . . . . . 1 . . . . . . Relay Couplers Released . | . . . . . . . . . . . . . Fabnet Peak Effective % . | . . . . . . . . . . . . . Robots Rewired . | . . . . . . . . . . . . . Allies Hacked . | . . . . . . . . . . . . . Hacks Repelled . | . . . . . . . . . . . . . Allies | -11 -10 -10 -10 -8 -8 -6 -6 -6 -5 -4 -3 -3 -------- Run | Yrd Mat Min Sub Rec Scr Fac Low Low Fac Fac Res Qua Total Allies 5 | . . . . . . 5 . . . . . . Largest Group 3 | . . . . . . 3 . . . . . . Highest-Rated Group 92 | . . . . . . 92 . . . . . . Highest-Rated Ally 41 | . . . . . . 41 . . . . . . Total Orders 4 | . . . . . . 1 . . . 3 . . EXPLORE 4 | . . . . . . 1 . . . 3 . . Ally Attacks 5 | . . . . . . 5 . . . . . . Total Damage 172 | . . . . . . 172 . . . . . . Kills 2 | . . . . . . 2 . . . . . . Allies Corrupted . | . . . . . . . . . . . . . Allies Melted . | . . . . . . . . . . . . . Intel | -11 -10 -10 -10 -8 -8 -6 -6 -6 -5 -4 -3 -3 ------- Run | Yrd Mat Min Sub Rec Scr Fac Low Low Fac Fac Res Qua Active Infowar (turns) 3046 | . . . . . . 877 209 73 511 206 336 834 Optics 3021 | . . . . . . 852 209 73 511 206 336 834 Sensors 320 | . . . . . . . 78 73 169 . . . IFF 924 | . . . . . . . . . . . 215 709 Traps 5 | . . . . . . 5 . . . . . . Decoding 1639 | . . . . . . 877 209 73 480 . . . Robot Analysis Total . | . . . . . . . . . . . . . Derelict Logs Recovered 2 | . . . . . . . 2 . . . . . Drone Launches 5 | . . . . . . 2 . . . 3 . . Drone Recoveries . | . . . . . . . . . . . . . Decoded 0b10 Intel 40 | . . . . . . 26 . . 14 . . . Traps 3 | . . . . . . 3 . . . . . . Items 28 | . . . . . . 17 . . 11 . . . Machines 5 | . . . . . . 3 . . 2 . . . Patrols 3 | . . . . . . 2 . . 1 . . . Exits 1 | . . . . . . 1 . . . . . . Exploration | -11 -10 -10 -10 -8 -8 -6 -6 -6 -5 -4 -3 -3 ------------- Run | Yrd Mat Min Sub Rec Scr Fac Low Low Fac Fac Res Qua Turns Passed 4017 | 44 241 122 194 72 297 878 209 73 511 206 336 834 Spaces Moved 6972 | 42 196 105 247 192 777 2216 541 146 412 365 698 1035 Core 351 | 2 . . 1 . . . . 3 158 . . 187 Treads . | . . . . . . . . . . . . . Legs 158 | . . . . . . . . . 133 . . 25 Wheels 238 | 40 196 2 . . . . . . . . . . Hover 942 | . . . . . . . . . 121 80 180 561 Flight 5283 | . . 103 246 192 777 2216 541 143 . 285 518 262 Fastest Speed 25 | 50 80 37 37 37 37 25 30 35 50 27 30 45 Average Speed 41 | 78 80 38 38 37 37 29 32 36 98 37 36 54 Slowest Speed 150 | 80 80 125 150 37 37 37 35 100 120 76 60 110 Overloaded Moves . | . . . . . . . . . . . . . Propulsion Burnouts . | . . . . . . . . . . . . . Robots Hopped 23 | . . . 2 2 . 11 1 . . . . 7 Potential Cave-ins . | . . . . . . . . . . . . . Cave-ins Triggered . | . . . . . . . . . . . . . Teleports 4 | . . . . . . . . . . . . 4 Exploration Rate (%) 36 | 3 34 30 17 56 59 62 71 17 9 17 21 79 Regions Visited 12 Branch Regions 7 Pre-discovered Areas 1 | . . . . . . 1 . . . . . . Known Exits Taken 6 | . . . . . . 1 1 1 1 1 1 . Unknown Exits Taken 6 | 1 1 1 1 1 1 . . . . . . . Scrap Searched 3 | . . 1 . . . . 2 . . . . . Spaces Dug 34 | . . . . . . 7 . . 3 3 19 2 Terrain Destroyed 34 | . . . . . . 7 . . 3 3 19 2 Melee 34 | . . . . . . 7 . . 3 3 19 2 Projectile . | . . . . . . . . . . . . . AOE . | . . . . . . . . . . . . . Terrain Rammed . | . . . . . . . . . . . . . Walls Destroyed . | . . . . . . . . . . . . . Machines Disabled . | . . . . . . . . . . . . . Actions | -11 -10 -10 -10 -8 -8 -6 -6 -6 -5 -4 -3 -3 --------- Run | Yrd Mat Min Sub Rec Scr Fac Low Low Fac Fac Res Qua Total 7728 | 50 243 174 315 190 788 2368 557 165 457 412 744 1265 Wait 439 | . 22 56 49 . . 81 7 20 4 11 13 176 Move 6917 | 41 195 104 242 188 776 2193 538 145 411 364 697 1023 Hop 20 | . . . 2 1 . 11 1 . . . . 5 Pick Up 36 | 4 2 3 1 1 1 8 1 . 1 6 1 7 Fast Attach 56 | 5 2 . 2 . 1 10 1 . 9 8 7 11 Attach 20 | . . 1 2 . . 8 . . 3 3 . 3 Detach 3 | . . . . . 1 . . . . 2 . . Swap 20 | . . 3 . . 3 9 . . 2 1 1 1 Drop 34 | . 2 1 . . 6 7 1 . . 4 5 8 Fire 58 | . 20 6 17 . . 14 . . 1 . . . Melee 111 | . . . . . . 27 8 . 26 13 20 17 Ram 5 | . . . . . . . . . . . . 5 Kick . | . . . . . . . . . . . . . Crush . | . . . . . . . . . . . . . Escape Stasis 9 | . . . . . . . . . . . . 9 Rewire . | . . . . . . . . . . . . . Trap . | . . . . . . . . . . . . . Miscellaneous . | . . . . . . . . . . . . . Route ------- -11/Scrapyard -10/Materials -10/Mines -10/Subcaves (discovered 2 exits: [*Mat] / *Rec) -8/Recycling (discovered 2 exits: *Fac / *Scr) -8/Scraptown -6/Factory (discovered 2 exits: *Low x2) -6/Lower Caves -6/Lower Caves -5/Factory (discovered 2 exits: *Fac x2) -4/Factory (discovered 2 exits: *Res / [*Ext]) -3/Research (discovered 3 exits: *Arm / *Qua x2) -3/Quarantine History --------- Turn | Location | Event 25 | -11/Scrapyard | Discovered new exit (range 15) 45 | -11/Scrapyard | Entered Materials 274 | -10/Materials | Discovered new exit (range 6) 286 | -10/Materials | Entered Mines 338 | -10/Mines | Build established: Mutant 396 | -10/Mines | Discovered new exit (range 5) 408 | -10/Mines | Entered Subcaves 409 | -10/Subcaves | Approached by a straggling Scientist 425 | -10/Subcaves | Discovered new exit (range 5) 475 | -10/Subcaves | Shifting Twisted Machinery released Battle Cannon 479 | -10/Subcaves | Lost 3 parts (2n1w) 486 | -10/Subcaves | Visited Clippyterm 488 | -10/Subcaves | Learned Factory emergency access door positions 488 | -10/Subcaves | Learned Research machine intel 521 | -10/Subcaves | Shifting Twisted Machinery released Sub. Laser 522 | -10/Subcaves | Shifting Twisted Machinery released Scrap Shield 576 | -10/Subcaves | Core integrity fell below 50% 594 | -10/Subcaves | Core integrity fell below 20% 600 | -10/Subcaves | Discovered new exit (range 8) 602 | -10/Subcaves | Entered Recycling 656 | -8/Recycling | Discovered new exit (range 10) 665 | -8/Recycling | Scanned before Scraplab entrance 670 | -8/Recycling | Entered Scraplab 674 | -8/Recycling | Discovered new exit (range 2) 674 | -8/Recycling | Entered Scraptown 719 | -8/Scraptown | Visited UFD Registry 719 | -8/Scraptown | Registered with UFD as "Shortface" 727 | -8/Scraptown | Visited Shadow of the Wyrm 730 | -8/Scraptown | Visited Symbiants 740 | -8/Scraptown | Heard Great Nut preacher, LISTEN AND RECITE! 764 | -8/Scraptown | Visited Cave Peace 785 | -8/Scraptown | Visited Supply Room 817 | -8/Scraptown | Visited Science Testing Area 822 | -8/Scraptown | Visited Science Guys 838 | -8/Scraptown | Visited Abandonware Association 841 | -8/Scraptown | Learned abandonware demo "OVRCLOCK.EXE" 844 | -8/Scraptown | Learned abandonware demo "HACKBUD.EXE" 844 | -8/Scraptown | Learned abandonware demo "TRNCOAT.EXE" 851 | -8/Scraptown | Visited Junk Repository 867 | -8/Scraptown | Visited Research Penetration Think Tank 892 | -8/Scraptown | Visited Scrap Suit Storage 903 | -8/Scraptown | Visited Scrapoid Pod Storage 910 | -8/Scraptown | Visited Infowarlord's Domain 922 | -8/Scraptown | Visited Scrapoid Research Area 947 | -8/Scraptown | Met Optimus 947 | -8/Scraptown | Accepted into 0bPrime 969 | -8/Scraptown | Discovered new exit (range 5) 971 | -8/Scraptown | Entered Factory 971 | -6/Factory | Evolved 8 slots: Power x1, Propulsion x3, Utility x4 1063 | -6/Factory | Loaded intel: 8 recycling unit locations 1315 | -6/Factory | Learned location of Protoforge (-2) 1453 | -6/Factory | Spotted B-75 Beast 1624 | -6/Factory | Identified exit to Lower Caves 1687 | -6/Factory | Build established: Scavenger-Sprinter 1701 | -6/Factory | Fabricated H-66 Slayer (x2) 1825 | -6/Factory | Lost 3 parts (3n) 1845 | -6/Factory | Discovered exit to Lower Caves (range 15) 1849 | -6/Factory | Entered Lower Caves 1905 | -6/Lower Caves | Learned Factory terminal intel 1990 | -6/Lower Caves | Lost 4 parts (1p2n1w) 2005 | -6/Lower Caves | Discovered new exit (range 17) 2015 | -6/Lower Caves | Encountered a Warlord checkpoint 2057 | -6/Lower Caves | Identified exit to Lower Caves 2057 | -6/Lower Caves | Learned Factory stockpile data 2058 | -6/Lower Caves | Entered another Lower Caves area 2092 | -6/Lower Caves | Discovered new exit (range 17) 2130 | -6/Lower Caves | Identified exit to Factory 2131 | -6/Lower Caves | Entered Factory 2131 | -5/Factory | Evolved 2 slots: Utility x2 2133 | -5/Factory | Loaded intel: 26 terminal locations 2364 | -5/Factory | Lost 3 parts (1n1u1w) 2405 | -5/Factory | Central database locked down 2411 | -5/Factory | Discovered new exit (range 3) 2414 | -5/Factory | Identified exit to Factory 2470 | -5/Factory | Loaded intel: 8 recycling unit locations 2537 | -5/Factory | Discovered exit to Factory (range 21) 2593 | -5/Factory | Core integrity fell below 50% 2620 | -5/Factory | Core integrity fell below 20% 2642 | -5/Factory | Lost 7 parts (1p3n2u1w) 2642 | -5/Factory | Entered another Factory area 2642 | -4/Factory | Evolved 2 slots: Utility x2 2811 | -4/Factory | Central database locked down 2825 | -4/Factory | Fabricated Adv. Phase Shifter? 2826 | -4/Factory | Spotted B-86 Titan 2841 | -4/Factory | Discovered new exit (range 9) 2843 | -4/Factory | Discovered new exit (range 5) 2844 | -4/Factory | Identified exit to Research 2848 | -4/Factory | Entered Research 2848 | -3/Research | Evolved 2 slots: Utility x2 2849 | -3/Research | Loaded intel: 125 machine locations 2910 | -3/Research | Loaded intel: 5 recycling unit locations 2915 | -3/Research | Imp. Hacking Suite fried by hacking feedback 2950 | -3/Research | Spotted B-86 Titan 3021 | -3/Research | Discovered new exit (range 21) 3027 | -3/Research | Identified exit to Quarantine 3047 | -3/Research | Identified exit to Armory 3149 | -3/Research | Spotted B-86 Titan 3184 | -3/Research | Entered Quarantine 3211 | -3/Quarantine | Found Alien Artifact 3211 | -3/Quarantine | Identified Terrabomb 3211 | -3/Quarantine | Used Terrabomb 3218 | -3/Quarantine | Discovered new exit (range 23) 3225 | -3/Quarantine | Found Alien Artifact 3225 | -3/Quarantine | Identified Subatomic Replicator 3242 | -3/Quarantine | Found Alien Artifact 3246 | -3/Quarantine | Found Alien Artifact 3246 | -3/Quarantine | Identified Hpw. Transdimensional Reconstructor 3246 | -3/Quarantine | Warped through subspace 3276 | -3/Quarantine | Found Alien Artifact 3276 | -3/Quarantine | Identified Phase Armor 3282 | -3/Quarantine | Met incapacitated Sigix Warrior 3282 | -3/Quarantine | Lockdown squad dispatched 3284 | -3/Quarantine | Acquired the access code to the Sigix quarantine chamber 3285 | -3/Quarantine | Unlocked Sigix quarantine chamber 3288 | -3/Quarantine | Found Sigix Containment Pod 3293 | -3/Quarantine | Used Subatomic Replicator to replicate Sigix Containment Pod 3317 | -3/Quarantine | Build established: Gladiator 3410 | -3/Quarantine | Found Hpw. Transdimensional Reconstructor 3410 | -3/Quarantine | Warped through subspace 3565 | -3/Quarantine | Spotted Lightning 3567 | -3/Quarantine | Spotted Lightning 3591 | -3/Quarantine | Spotted Lightning 3619 | -3/Quarantine | Found Alien Reactor 3619 | -3/Quarantine | Identified Matter Drive 3645 | -3/Quarantine | Core integrity fell below 50% 3656 | -3/Quarantine | System corruption reached 10% 3659 | -3/Quarantine | Identified Transdimensional Reconstructor 3659 | -3/Quarantine | Warped through subspace 3669 | -3/Quarantine | Found Transdimensional Reconstructor 3682 | -3/Quarantine | Identified exit to Research 3689 | -3/Quarantine | Lost 6 parts (3n1u2w) 3726 | -3/Quarantine | Found Alien Artifact 3726 | -3/Quarantine | Identified Core Reset Matrix 3726 | -3/Quarantine | Used Core Reset Matrix 3730 | -3/Quarantine | Sensed 9 artifacts in vicinity 3925 | -3/Quarantine | Build established: Mutant 3991 | -3/Quarantine | Core integrity fell below 20% 3992 | -3/Quarantine | Scanned by Researcher 3999 | -3/Quarantine | Warped through subspace 4018 | -3/Quarantine | Destroyed by G-67 Veteran with Plasma Rifle Last Messages --------------- Adv. Cryofiber Web destroyed. Slug penetrates Wall. Slug penetrates Door. Impulse Thruster Array destroyed. Machine disabled. LY1QGKSTDALD GLOL2R|BQY 8RL:1X Nuclear Pulse Array destroyed. C-55 Analyst calibrates the Containment Shield. Slammed into W-44 Eye. Biometal Leg destroyed. Slammed into W-44 Eye. C-55 Analyst calls for reinforcements. ALERT: Hostile activity reported, dispatching reinforcements to area. Held in stasis. C-55 Analyst is analyzing... ALERT: Encountered unknown unique technology, formulating response. Imp. Melee Analysis Suite destroyed. Warped through subspace. Map ----- +----------------------------------------------------+ | ?????????????????????????# """ #?#"""""#??????# | | ?????????????????????????# """ ###""T""######## | | ?????????????????????????# """ ## ## | | ?????????????????????????# ## """ """ ## | | ?????????????????????????#x ## """ """ ## | | ?????????????????????????#A ## """ """ ! ### | | ?????????????????????????# x + #?? | | ?????????????????????????# x # """ """ #?? | | ?????????????????????????# + """ """ ""### | | ?????????????????????????#m ^ # """ """ ""## | | ?????????????????????????# ^ # T"## | | ?????????????????????????# """ # ""## | | ??????????????????????#### """ # = * ""## | | ??????????????????????# ^ ^""" # ##! | | ??????????????????????# ^ ############### | | ??????????????????????# ^ """ + | | ??????????????????????# """ ########### ## | | ??????????????????????# """ #?????????# | | ??????????????????????# k #?????????# | | ?????? ############## #?????????# | | ?????? #?????????# | | ????? k #?????????# | | ?????? """ #?????????# | | ??????? """ """ """ #?????????###### | | ?????????? """"""""" R" #??????????????# | | ???? @ """ #??????????????# | | ???? #????????????### | | ???? #????????????# | | ????? ######u g #????????????# | | ???????????????# #????????????# | | ???????????????# c +????????????# | | ???????????????# ########## g #?????!??????# | | ???????????????# ?????????? gg #????!!??????#[ | | ???????????????# ??????????? #????????????### | | ???????????????# ???????????? #??????????????? | | ???????????????# ????????????? #??????????????? | | ???????????????#?????????????? #??????????????? | | ?????????????????????????????? #??????????????? | | ??????????????????????????????? #??????????????? | | ??????????????????????????????? #??????????????? | | ???????????????????????????????? #??????????????? | | ???????????????????????????????? ??????????????? | | ?????????????????????????????????????????????????? | | ?????????????????????????????????????????????????? | | ?????????????????????????????????????????????????? | | ?????????????????????????????????????????????????? | | ?????????????????????????????????????????????????? | | ?????????????????????????????????????????????????? | | ?????????????????????????????????????????????????? | | ?????????????????????????????????????????????????? | +----------------------------------------------------+ Best States ------------- Heat Dissipation 84 Energy Generation 23 Energy Capacity 340 Matter Stores 300 Matter Capacity 300 Sight Range 23 Robot Scan Range 15 Terrain Scan Density 10 Additional Mass Support 12 Base Temperature (-) 200 Core Shielding 20 Evasion (%) 65 Melee Accuracy 14 Offensive Hacking 22 Defensive Hacking 10 Item Schematics ----------------- None Robot Schematics ------------------ None Fabricated ------------ H-66 Slayer | x2 | -6/Factory | Preloaded Adv. Phase Shifter | x2 | -4/Factory | Preloaded Repaired ---------- Nothing Studied --------- None Alien Tech Used ----------------- Terrabomb Subatomic Replicator High-powered Transdimensional Reconstructor Phase Armor Matter Drive Transdimensional Reconstructor Core Reset Matrix Achievements -------------- Recruitment Drive Challenges ------------ None Game ------ Seed MolecularDirtyInitializer Manual? 0 Play Time 01:38:03 Cumulative 50.9 hours Start 2025.11.11 @ 17:13:14 End 2025.11.11 @ 19:50:54 Sessions 1 Manual Loads 0 Difficulty Rogue Special Mode None Game No. 58 Rogue 58 Adventurer 0 Explorer 0 Win Type - Total 1 Types 1/0/0/0/0/0/0/0/0/0 Lore% 47 Gallery% 43 Achievement% 31 Wizard Run 0 Options --------- Layout 1 ASCII 0 Keyboard 0 Movement Numpad Keybinds 0 Fullscreen 1 Font 32/SmallcapsGlow Map View 50x35 Zoom Use 0% Tactical HUD 0 Map Filters NONE Filters NONE Steam 1 RUN: a69103c0-3d77-40ce-bf88-c10dc411edec